bitfinex-derivatives/quotes_SOLF0:USTF0_20260207
["timestamp","ask_amount","ask_price","bid_price","bid_amount"]
[1770432591682,10.3663,86.879,86.838,7.30302406]
[1770432592472,5.09308293,86.87,86.838,7.30302406]
[1770432593281,10.3663,86.879,86.83,10.3721]
[1770432593585,5.09308293,86.88,86.831,7.19123804]
[1770432594782,5.09308293,86.88,86.836,7.25107863]
[1770432598180,2.0034427,86.928,86.836,7.25107863]
[1770432598181,5.09308293,86.87,86.836,7.25107863]
[1770432600787,2.0034427,86.928,86.827,10.3724]
[1770432600788,5.09308293,86.86,86.827,10.3724]
[1770432601089,5.09308293,86.86,86.823,7.24815902]
[1770432601783,20.724,86.915,86.767,20.7591]
[1770432601784,5.09308293,86.87,86.828,7.24815902]
[1770432602589,5.09308293,86.88,86.831,7.2475103]
[1770432603186,5.09308293,86.89,86.848,7.2475103]
[1770432603882,5.09308293,86.88,86.851,7.2475103]
[1770432604082,5.09308293,86.88,86.813,7.24522167]
[1770432605788,5.09308293,86.88,86.841,7.24522167]
[1770432614693,5.09308293,86.87,86.841,7.24522167]
[1770432614896,5.09308293,86.86,86.829,7.25544144]
[1770432617098,10.3675,86.869,86.829,7.25544144]
[1770432620196,5.09308293,86.85,86.818,7.35540672]
[1770432620603,5.09308293,86.86,86.818,7.35540672]
[1770432621693,15.46168293,86.86,86.818,7.35540672]
[1770432622095,5.09308293,86.85,86.818,7.35540672]
[1770432622899,5.09308293,86.84,86.804,7.36915943]
[1770432623603,5.09308293,86.85,86.804,7.36915943]
[1770432624699,10.3699,86.849,86.804,7.36915943]
[1770432625398,5.09308293,86.84,86.804,7.36915943]
[1770432627406,5.09678849,86.84,86.804,7.36915943]
[1770432628302,5.09678849,86.84,86.795,7.38517902]
[1770432630409,5.09678849,86.83,86.783,7.38921842]
[1770432631209,5.09678849,86.84,86.783,7.38921842]
[1770432631706,5.09678849,86.85,86.794,7.38921842]
[1770432632804,5.09678849,86.84,86.801,7.39380733]
[1770432633307,5.09678849,86.83,86.789,7.39380733]
[1770432633499,34.59,86.896,86.789,7.39380733]
[1770432633698,5.09678849,86.85,86.791,7.39380733]
[1770432634710,5.09678849,86.85,86.805,7.40069437]
[1770432638603,5.09678849,86.86,86.807,7.26448819]
[1770432639506,5.09678849,86.85,86.807,7.26448819]
[1770432639808,5.09678849,86.85,86.811,7.26448819]
[1770432640511,5.09678849,86.86,86.821,7.32291313]
[1770432641015,5.09678849,86.85,86.821,7.32291313]
[1770432643814,5.09678849,86.86,86.821,7.32291313]
[1770432644013,161.26,86.917,86.77,20.7585]
[1770432644014,5.09678849,86.87,86.827,7.3213262]
[1770432645206,5.09678849,86.85,86.812,7.3213262]
[1770432647119,5.09678849,86.86,86.816,7.32194577]
[1770432648120,5.09678849,86.86,86.818,7.32327631]
[1770432648517,2.0034427,86.928,86.818,7.32327631]
[1770432648708,5.09678849,86.88,86.831,4.77488207]
[1770432649518,2.0034427,86.928,86.773,34.59]
[1770432649519,5.09678849,86.87,86.834,4.77488207]
[1770432650119,5.09678849,86.88,86.834,4.77488207]
[1770432650519,5.09678849,86.87,86.834,4.77488207]
[1770432652122,5.09678849,86.86,86.834,4.77488207]
[1770432653528,2.0034427,86.928,86.834,4.77488207]
[1770432653529,10.3645,86.894,86.834,4.77488207]
[1770432653822,5.09678849,86.88,86.834,4.77488207]
[1770432654026,5.09678849,86.87,86.834,4.77488207]
[1770432654726,5.09678849,86.87,86.836,4.77571917]
[1770432655121,8.849e-05,86.87,86.836,4.77571917]
[1770432655324,5.09678849,86.88,86.851,10.3696]
[1770432655524,5.09678849,86.88,86.836,4.77571917]
[1770432656727,5.09678849,86.88,86.842,10.3706]
[1770432656932,5.09678849,86.88,86.843,4.76757616]
[1770432657833,10.3624,86.912,86.852,15.12696173]
[1770432658036,5.09678849,86.89,86.852,15.12696173]
[1770432658340,5.09678849,86.9,86.853,4.75756173]
[1770432659937,5.09678849,86.9,86.864,10.368]
[1770432660144,5.09678849,86.92,86.865,4.74335165]
[1770432660342,5.09678849,86.91,86.865,4.74335165]
[1770432661442,5.09678849,86.91,86.825,20.7453]
[1770432661443,5.09678849,86.93,86.871,4.74335165]
[1770432661640,5.09678849,86.94,86.881,4.74335165]
[1770432661938,5.09678849,86.94,86.903,10.3634]
[1770432662334,5.09678849,86.94,86.913,10.3622]
[1770432662642,2.00245704,86.967,86.904,4.91682287]
[1770432662942,2.00245704,86.967,86.911,4.91682287]
[1770432663133,5.09678849,86.95,86.911,4.91682287]
[1770432664035,2.00245704,86.967,86.924,10.3608]
[1770432664341,5.09678849,86.97,86.924,10.3608]
[1770432664736,5.09678849,86.97,86.933,10.3597]
[1770432664941,5.09678849,86.98,86.933,10.3597]
[1770432666346,5.09678849,86.99,86.944,10.3585]
[1770432667138,5.09678849,86.99,86.954,4.82827044]
[1770432667342,5.09678849,87.01,86.954,4.82827044]
[1770432667844,5.09678849,87.01,86.961,4.8393872]
[1770432668043,5.09678849,87.03,86.971,4.8393872]
[1770432669837,5.09678849,87.0,86.941,4.83262614]
[1770432670840,5.09678849,86.99,86.941,4.83262614]
[1770432671347,5.09678849,86.99,86.956,4.83262614]
[1770432672441,5.09678849,87.0,86.956,4.83262614]
[1770432672942,5.09678849,87.01,86.956,4.83262614]
[1770432673839,5.09678849,87.01,86.959,4.84520986]
[1770432674240,5.09678849,87.01,86.962,10.3563]
[1770432674541,161.1,87.074,86.963,4.83796435]
[1770432674542,5.09678849,87.02,86.963,4.83796435]
[1770432675538,161.1,87.074,86.976,4.83796435]
[1770432675539,5.09678849,87.03,86.976,4.83796435]
[1770432676144,5.09678849,87.02,86.976,4.83796435]
[1770432676344,10.3452,87.056,86.98,4.80572287]
[1770432676548,5.09678849,87.03,86.98,4.80572287]
[1770432676844,5.09678849,87.02,86.98,4.80572287]
[1770432677349,5.09678849,87.03,86.98,4.80572287]
[1770432677745,5.09678849,87.03,86.986,4.80572287]
[1770432677941,5.09678849,87.02,86.986,4.80572287]
[1770432678340,5.09678849,87.03,86.987,15.17340746]
[1770432678553,5.09678849,87.03,86.988,4.82010746]
[1770432679849,5.09678849,87.03,86.99,10.353]
[1770432680453,5.09678849,87.02,86.99,10.353]
[1770432681043,5.09678849,87.03,86.99,10.353]
[1770432682955,5.09678849,87.0,86.957,4.81114875]
[1770432683159,5.09678849,86.99,86.957,4.81114875]
[1770432683947,11.51,87.103,86.902,20.727]
[1770432683948,5.09678849,87.01,86.961,4.82717632]
[1770432684158,5.09678849,87.02,86.961,4.82717632]
[1770432684658,5.09678849,87.02,86.977,4.82717632]
[1770432684856,5.09678849,87.01,86.977,4.82717632]
[1770432686255,5.09678849,87.02,86.981,10.354]
[1770432686451,5.09678849,87.02,86.981,15.21689044]
[1770432688659,5.09678849,87.02,86.927,20.7211]
[1770432688660,5.09678849,87.03,86.987,4.8255976]
[1770432688860,5.09678849,87.02,86.987,4.8255976]
[1770432689556,5.07583033,87.02,86.987,4.8255976]
[1770432689753,5.07583033,87.01,86.977,10.3545]
[1770432689954,5.07583033,87.01,86.978,4.84140462]
[1770432691453,5.07583033,87.03,86.98,4.84140462]
[1770432692054,10.3466,87.045,86.99,4.83770198]
[1770432692252,5.07583033,87.04,86.99,4.83770198]
[1770432693252,5.07583033,87.03,86.99,4.83770198]
[1770432693560,5.07583033,87.02,86.99,4.83770198]
[1770432693752,5.07583033,87.03,86.99,4.83770198]
[1770432694561,5.07583033,87.01,86.985,10.3536]
[1770432694758,5.07583033,87.01,86.977,4.82079922]
[1770432702163,5.07583033,86.99,86.951,4.84037048]
[1770432703155,5.07583033,86.97,86.939,4.84037048]
[1770432703456,5.07583033,86.96,86.911,4.84037048]
[1770432703660,2.00057488,87.05,86.911,4.84037048]
[1770432703661,160.9647,87.035,86.911,4.84037048]
[1770432703964,5.07583033,86.97,86.911,4.84037048]
[1770432704859,5.07583033,86.97,86.925,4.82261929]
[1770432705065,160.973,87.031,86.925,4.82261929]
[1770432705375,160.973,87.031,86.854,161.2995]
[1770432705376,5.07583033,87.0,86.941,4.82261929]
[1770432706866,5.07583033,87.0,86.955,15.19525883]
[1770432707459,5.07583033,87.0,86.956,4.83815883]
[1770432707660,5.07583033,87.0,86.96,10.3565]
[1770432708959,5.07583033,86.99,86.96,10.3565]
[1770432709564,5.07583033,87.0,86.96,10.3565]
[1770432712762,10.3488,87.026,86.971,4.7912186]
[1770432712968,5.07583033,87.03,86.971,4.7912186]
[1770432713465,5.07583033,87.03,86.986,4.7912186]
[1770432714066,5.07583033,87.03,86.989,4.77055074]
[1770432715283,5.07583033,87.04,86.991,4.77055074]
[1770432716774,5.07583033,87.04,86.993,4.74261892]
[1770432717278,5.07583033,87.03,86.993,4.74261892]
[1770432720374,5.07583033,87.02,86.97,4.74567532]
[1770432720569,5.07583033,86.98,86.952,4.74567532]
[1770432721376,2.00040813,87.059,86.952,4.74567532]
[1770432721377,5.07583033,87.0,86.952,4.74567532]
[1770432721976,5.07583033,87.02,86.961,4.76963367]
[1770432723375,2.00040813,87.059,86.961,4.76963367]
[1770432723376,13.59508766,87.04,86.961,4.76963367]
[1770432723872,10.3488,87.026,86.979,10.3543]
[1770432724275,160.8705,87.086,86.94,13.59508766]
[1770432724276,13.59508766,87.06,86.995,4.73264939]
[1770432724670,2.00037363,87.069,86.995,4.73264939]
[1770432724874,13.59508766,87.08,86.995,4.73264939]
[1770432725076,1.99997126,87.079,86.995,4.73264939]
[1770432725774,10.3437,87.069,87.015,4.73264939]
[1770432729969,1.99997126,87.079,87.015,4.73264939]
[1770432730176,1.99997126,87.079,86.842,176.0]
[1770432730177,13.59508766,87.1,87.019,4.7473421]
[1770432730482,1.99962651,87.089,87.019,4.7473421]
[1770432731777,10.3435,87.071,87.019,4.7473421]
[1770432732277,10.3422,87.082,87.022,4.73152776]
[1770432732476,13.59508766,87.1,87.022,4.73152776]
[1770432732676,1.99954034,87.099,87.022,4.73152776]
[1770432732880,13.59508766,87.1,87.0,13.59508766]
[1770432732881,13.59508766,87.1,87.04,4.73152776]
[1770432734277,13.59508766,87.1,87.024,4.72066056]
[1770432734482,13.59508766,87.08,87.024,4.72066056]
[1770432735680,10.3425,87.079,87.024,4.72066056]
[1770432739784,10.3425,87.079,87.028,10.3485]
[1770432740787,10.3425,87.079,87.028,15.06759955]
[1770432741786,10.3425,87.079,87.029,4.71909955]
[1770432744291,10.3425,87.079,87.032,10.348]
[1770432744594,1.9991383,87.109,87.033,4.7101778]
[1770432744595,13.59508766,87.1,87.033,4.7101778]
[1770432744984,1.9991383,87.109,87.033,4.7101778]
[1770432745189,13.59508766,87.08,87.033,4.7101778]
[1770432745590,13.59508766,87.1,87.033,4.7101778]
[1770432746996,10.3406,87.095,87.035,4.70765893]
[1770432747692,10.3406,87.095,87.039,10.3471]
[1770432747893,10.3406,87.095,87.039,15.05475893]
[1770432748294,10.3406,87.095,87.04,4.73205907]
[1770432748496,10.3406,87.095,87.042,15.07885907]
[1770432749284,10.3406,87.095,87.043,4.73205907]
[1770432750785,10.3419,87.084,87.043,4.73205907]
[1770432751400,5.06919054,87.08,87.043,4.73205907]
[1770432751698,5.06919054,87.07,87.043,4.73205907]
[1770432752092,5.06919054,87.08,87.043,4.73205907]
[1770432753003,5.06919054,87.07,87.043,4.73205907]
[1770432754702,5.06919054,87.06,87.027,4.63065958]
[1770432755000,5.06919054,87.07,87.027,4.63065958]
[1770432758197,10.3444,87.063,87.027,4.63065958]
[1770432758400,5.06919054,87.06,87.027,4.63065958]
[1770432758993,5.06919054,87.06,87.012,10.3503]
[1770432758994,10.3448,87.059,87.013,4.64530352]
[1770432760896,5.06919054,87.05,87.013,4.64530352]
[1770432761107,10.3461,87.048,87.013,4.64530352]
[1770432764996,5.06919054,87.05,87.013,4.64530352]
[1770432765203,5.06919054,87.06,87.015,4.65110887]
[1770432765803,1.9991383,87.109,87.015,4.65110887]
[1770432765804,5.06919054,87.07,87.015,4.65110887]
[1770432766204,1.9991383,87.109,87.034,4.674516]
[1770432766403,5.06919054,87.09,87.034,4.674516]
[1770432767809,10.3415,87.088,87.038,4.674516]
[1770432768404,5.06919054,87.07,87.038,4.674516]
[1770432769915,5.06919054,87.08,87.038,4.674516]
[1770432772012,5.06919054,87.07,87.038,4.674516]
[1770432775026,5.06919054,87.07,87.029,10.3484]
[1770432775330,5.06919054,87.07,87.03,4.67607423]
[1770432779524,5.06919054,87.05,87.004,4.68874754]
[1770432779827,5.06919054,87.06,87.004,4.68874754]
[1770432780417,5.06919054,87.06,87.023,10.349]
[1770432780623,10.3438,87.068,87.024,4.71026921]
[1770432781028,5.06919054,87.06,87.024,4.71026921]
[1770432781427,5.06919054,87.06,87.026,4.71026921]
[1770432781628,1.9991383,87.109,87.026,4.71026921]
[1770432781629,5.06919054,87.08,87.026,4.71026921]
[1770432782834,5.06919054,87.08,87.043,10.3466]
[1770432783230,5.06919054,87.1,87.054,4.69084301]
[1770432783832,5.06919054,87.11,87.054,4.69084301]
[1770432784328,5.06919054,87.11,87.061,4.65291883]
[1770432785728,5.06919054,87.11,87.066,10.3439]
[1770432786338,5.06919054,87.1,87.066,10.3439]
[1770432786837,5.06919054,87.11,87.066,10.3439]
[1770432788626,10.3385,87.113,87.067,4.66200802]
[1770432788627,5.06919054,87.1,87.067,4.66200802]
[1770432788827,5.06919054,87.11,87.067,4.66200802]
[1770432790338,5.06919054,87.1,87.067,4.66200802]
[1770432792331,5.06919054,87.08,87.043,4.66454882]
[1770432793424,5.06919054,87.08,87.044,10.3466]
[1770432793934,5.06919054,87.07,87.031,4.69303191]
[1770432794332,5.06919054,87.08,87.046,4.69303191]
[1770432795231,5.06919054,87.09,87.048,10.3461]
[1770432795426,5.06919054,87.11,87.051,4.69303191]
[1770432795633,5.06919054,87.1,87.051,4.69303191]
[1770432796732,5.06919054,87.1,87.062,10.3444]
[1770432798533,5.06919054,87.09,87.054,4.66382856]
[1770432800235,10.3416,87.086,87.04,4.67612717]
[1770432802739,5.06919054,87.07,87.039,10.3471]
[1770432803530,5.06919054,87.08,87.039,10.3471]
[1770432803940,5.06919054,87.07,87.028,4.67281847]
[1770432804240,5.06919054,87.06,87.028,4.67281847]
[1770432805140,5.06919054,87.07,87.028,4.67281847]
[1770432810935,10.3414,87.088,87.032,4.69099296]
[1770432811140,5.06919054,87.09,87.032,4.69099296]
[1770432811541,5.06791241,87.09,87.032,4.69099296]
[1770432812148,5.06791241,87.09,87.049,15.02667596]
[1770432812349,5.06791241,87.09,87.05,4.68077596]
[1770432813844,5.06791241,87.09,87.051,15.02647596]
[1770432814648,5.06791241,87.1,87.051,4.68077596]
[1770432815752,5.06791241,87.1,87.053,10.3455]
[1770432815949,5.06791241,87.09,87.053,10.3455]
[1770432817452,5.06791241,87.09,87.053,15.04269722]
[1770432817752,5.06791241,87.09,87.053,4.69719722]
[1770432818449,5.06791241,87.08,87.037,10.3474]
[1770432818646,5.06791241,87.07,87.029,4.69090156]
[1770432819043,5.06791241,87.08,87.029,4.69090156]
[1770432819748,5.06791241,87.08,87.032,4.69090156]
[1770432822350,5.06791241,87.08,87.034,10.3477]
[1770432822651,5.06791241,87.09,87.032,4.69090156]
[1770432823453,10.3407,87.094,87.032,4.69090156]
[1770432823653,1.99912108,87.119,87.032,4.69090156]
[1770432823654,5.06791241,87.11,87.052,4.7170744]
[1770432824757,5.06791241,87.11,87.061,4.69527082]
[1770432824954,1.99912108,87.119,87.046,4.69527082]
[1770432824955,5.06791241,87.09,87.046,4.69527082]
[1770432825855,5.06791241,87.09,87.049,10.3459]
[1770432830453,5.06791241,87.09,87.049,15.05210073]
[1770432831962,5.06791241,87.09,87.05,4.70738003]
[1770432833958,5.06791241,87.1,87.054,4.70738003]
[1770432835063,10.3402,87.099,87.054,4.70738003]
[1770432835366,5.06791241,87.1,87.054,4.70738003]
[1770432836765,10.3392,87.107,87.056,4.69898661]
[1770432837760,10.3392,87.107,87.06,10.3446]
[1770432839163,10.3392,87.107,87.06,15.01026118]
[1770432839364,10.3392,87.107,87.061,4.66566118]
[1770432841072,5.06791241,87.1,87.061,4.66566118]
[1770432844666,5.06791241,87.1,87.063,4.67943564]
[1770432844971,5.06791241,87.11,87.063,4.67943564]
[1770432846571,5.06791241,87.1,87.063,4.67943564]
[1770432852270,5.06791241,87.1,87.04,5.06791241]
[1770432852271,5.06791241,87.1,87.065,4.68543905]
[1770432852475,5.06791241,87.11,87.065,4.68543905]
[1770432853977,5.06791241,87.1,87.065,4.68543905]
[1770432854281,5.06791241,87.1,87.067,10.3439]
[1770432857986,5.06791241,87.11,87.067,10.3439]
[1770432859086,5.06791241,87.1,87.067,10.3439]
[1770432859283,5.06791241,87.1,87.067,14.99754126]
[1770432860484,5.06791241,87.1,87.068,4.66372269]
[1770432860687,5.06791241,87.09,87.05,4.66372269]
[1770432861785,5.06791241,87.09,87.053,4.66372269]
[1770432863187,10.3404,87.097,87.053,4.66372269]
[1770432867693,5.06791241,87.1,87.053,4.66372269]
[1770432871498,5.06746894,87.08,87.043,4.61535085]
[1770432871902,5.06746894,87.09,87.043,4.61535085]
[1770432872292,5.06746894,87.08,87.043,4.61535085]
[1770432873400,5.06746894,87.08,87.046,4.63201727]
[1770432873596,5.06746894,87.09,87.046,4.63201727]
[1770432874802,5.06746894,87.09,87.047,15.04142226]
[1770432876502,5.06746894,87.09,87.048,4.67796265]
[1770432883406,5.06746894,87.09,87.034,28.48448757]
[1770432883606,5.06746894,87.07,87.035,4.6589055]
[1770432884809,5.06746894,87.06,87.022,4.64887639]
[1770432887211,5.06746894,87.08,87.023,4.70279973]
[1770432889411,10.3419,87.084,87.023,4.70279973]
[1770432890405,10.3419,87.084,87.025,4.65361171]
[1770432891608,5.06746894,87.09,87.031,4.65361171]
[1770432893211,10.3414,87.088,87.031,4.65361171]
[1770432893905,5.06746894,87.09,87.033,4.66158533]
[1770432894721,5.06746894,87.09,87.038,4.63905436]
[1770432895611,5.06746894,87.09,87.042,4.63905436]
[1770432896518,5.06746894,87.09,87.043,10.3467]
[1770432896717,5.06746894,87.09,87.044,4.63567726]
[1770432896919,10.3401,87.099,87.044,4.63567726]
[1770432897119,5.06746894,87.11,87.055,4.63567726]
[1770432897314,1.99912108,87.119,87.055,4.63567726]
[1770432898313,1.99912108,87.119,87.069,10.3436]
[1770432898621,5.06746894,87.15,87.081,4.6345731]
[1770432898815,5.06746894,87.15,87.08,5.06746894]
[1770432898816,5.06746894,87.15,87.091,4.6345731]
[1770432899314,1.99804215,87.159,87.091,4.6345731]
[1770432899719,5.06746894,87.16,87.105,4.6345731]
[1770432900315,5.06746894,87.16,87.108,4.60314239]
[1770432901622,10.49143382,87.22,87.061,20.6891]
[1770432901623,5.06746894,87.17,87.111,4.60314239]
[1770432902922,5.06746894,87.18,87.121,4.58528088]
[1770432903722,5.06746894,87.18,87.126,4.58528088]
[1770432904516,5.06746894,87.19,87.126,4.58528088]
[1770432905822,5.06746894,87.19,87.131,4.58737489]
[1770432907222,5.06746894,87.15,87.099,4.59000451]
[1770432907524,5.06746894,87.14,87.099,4.59000451]
[1770432908614,5.06746894,87.15,87.099,4.59000451]
[1770432908828,5.06746894,87.14,87.099,4.59000451]
[1770432910418,5.06746894,87.11,87.073,4.66425342]
[1770432911423,5.06746894,87.12,87.073,4.66425342]
[1770432911623,5.06746894,87.12,87.075,4.66425342]
[1770432911821,5.06746894,87.13,87.075,4.66425342]
[1770432912221,5.06746894,87.13,87.02,34.5]
[1770432912222,5.06746894,87.14,87.081,4.71410862]
[1770432913622,5.06746894,87.14,87.094,4.71410862]
[1770432914823,5.06746894,87.14,87.097,4.67401105]
[1770432915024,5.06746894,87.15,87.097,4.67401105]
[1770432915936,5.06746894,87.15,87.102,4.67401105]
[1770432918236,5.06746894,87.14,87.102,4.67401105]
[1770432926251,5.06746894,87.15,87.102,4.67401105]
[1770432931037,5.06746894,87.16,87.11,4.62075243]
[1770432931244,5.06746894,87.17,87.11,4.62075243]
[1770432932743,5.06746894,87.17,87.12,4.59868744]
[1770432933444,5.05884584,87.16,87.12,4.59868744]
[1770432935652,5.05884584,87.16,87.124,4.59122809]
[1770432936053,5.05884584,87.17,87.124,4.59122809]
[1770432936254,5.05884584,87.18,87.124,4.59122809]
[1770432937745,5.05884584,87.18,87.137,10.3355]
[1770432939257,5.05884584,87.17,87.137,10.3355]
[1770432940956,5.05884584,87.18,87.138,4.5962967]
[1770432941951,5.05884584,87.16,87.112,4.59488124]
[1770432942263,5.05884584,87.15,87.112,4.59488124]
[1770432943258,5.05884584,87.15,87.115,4.59488124]
[1770432945760,1.99715348,87.199,87.101,4.62770079]
[1770432945761,5.05884584,87.13,87.101,4.62770079]
[1770432946561,5.05884584,87.14,87.101,4.62770079]
[1770432948560,1.99715348,87.199,87.06,20.6893]
[1770432948561,5.05884584,87.12,87.078,4.61501943]
[1770432950157,5.05884584,87.1,87.062,4.60377354]
[1770432950865,5.05884584,87.09,87.062,4.60377354]
[1770432951463,5.05884584,87.08,87.036,4.60377354]
[1770432951668,10.3409,87.093,87.036,4.60377354]
[1770432951669,5.05884584,87.06,87.036,4.60377354]
[1770432951867,5.05884584,87.05,87.004,4.60377354]
[1770432952067,5.05884584,87.05,87.005,4.62385212]
[1770432952661,5.05884584,87.04,87.005,4.62385212]
[1770432954269,5.05884584,87.05,87.005,4.62385212]
[1770432954472,5.05884584,87.04,87.005,4.62385212]
[1770432955068,5.05884584,87.09,87.031,3.96319286]
[1770432955272,8.95558683,87.09,87.031,3.96319286]
[1770432955970,3.89674099,87.105,87.051,3.96319286]
[1770432956162,5.05884584,87.11,87.051,3.96319286]
[1770432956766,3.92217944,87.118,87.067,3.96319286]
[1770432957676,3.92217944,87.129,87.071,3.96319286]
[1770432958367,3.92217944,87.129,87.027,160.9792]
[1770432958368,3.92217944,87.129,87.081,3.96319286]
[1770432959170,5.05884584,87.14,87.09,5.05884584]
[1770432959371,4.02881205,87.179,87.101,3.96319286]
[1770432960073,4.02881205,87.179,87.043,35.52849379]
[1770432960074,4.02881205,87.177,87.108,3.96319286]
[1770432961476,4.02881205,87.159,87.086,3.96319286]
[1770432962784,4.02881205,87.154,87.086,3.96319286]
[1770432963085,4.02881205,87.154,87.024,35.52849379]
[1770432963086,4.02881205,87.154,87.088,3.96319286]
[1770432964078,4.02881205,87.154,87.1,10.3398]
[1770432964281,4.02881205,87.154,87.101,3.96319286]
[1770432964682,4.02881205,87.154,87.105,3.96319286]
[1770432964984,4.02881205,87.168,87.105,3.96319286]
[1770432965783,4.02881205,87.168,87.108,3.9635813]
[1770432966782,4.02881205,87.168,87.111,3.9635813]
[1770432967778,4.02881205,87.168,87.118,3.9635813]
[1770432968184,1.99715348,87.199,87.081,3.78113977]
[1770432968185,3.82284629,87.159,87.081,3.78113977]
[1770432969785,3.82284629,87.159,87.097,3.78113977]
[1770432970887,3.82284629,87.159,87.101,3.78113977]
[1770432972190,3.82284629,87.159,87.105,3.78113977]
[1770432973685,3.82284629,87.159,87.107,3.78113977]
[1770432975789,3.82284629,87.159,87.115,3.78113977]
[1770432976693,3.82284629,87.159,87.117,10.3379]
[1770432977988,3.82284629,87.159,87.117,14.11903977]
[1770432978195,10.3307,87.179,87.119,3.78113977]
[1770432978196,3.82284629,87.179,87.119,3.78113977]
[1770432978792,3.82284629,87.196,87.143,3.78113977]
[1770432979293,3.82284629,87.218,87.143,3.78113977]
[1770432979488,1.99718787,87.219,87.104,28.32967219]
[1770432979489,5.05341655,87.19,87.137,3.78113977]
[1770432979681,5.05341655,87.18,87.137,3.78113977]
[1770432979886,5.05341655,87.17,87.137,3.78113977]
[1770432980795,5.05341655,87.17,87.138,10.3354]
[1770432982094,3.82284629,87.189,87.141,3.78113977]
[1770432983793,3.82284629,87.189,87.143,10.3348]
[1770432985596,3.82284629,87.189,87.15,10.3339]
[1770432985797,5.05341655,87.19,87.151,3.78113977]
[1770432986492,5.05341655,87.19,87.103,20.6791]
[1770432986493,5.05341655,87.2,87.153,3.78113977]
[1770432987898,5.05341655,87.2,87.159,10.3329]
[1770432991192,5.05341655,87.2,87.159,14.11403977]
[1770432991396,3.82284629,87.199,87.159,14.11403977]
[1770432992598,3.82284629,87.199,87.163,3.78113977]
[1770432993599,3.82284629,87.199,87.165,14.11323977]
[1770432993801,5.05396502,87.21,87.166,3.78113977]
[1770432994107,5.05396502,87.2,87.166,3.78113977]
[1770432997507,3.82284629,87.209,87.166,3.78113977]
[1770432999103,3.82284629,87.209,87.168,3.94875402]
[1770433000606,3.81715149,87.219,87.168,3.94875402]
[1770433001800,3.81715149,87.219,87.169,3.94875402]
[1770433002706,3.81715149,87.219,87.173,3.94875402]
[1770433003508,3.81715149,87.219,87.176,3.94875402]
[1770433005007,3.81715149,87.232,87.181,3.94875402]
[1770433005507,3.81715149,87.232,87.18,5.05396502]
[1770433005508,3.81715149,87.232,87.201,10.328]
[1770433009607,5.05396502,87.23,87.204,3.94875402]
[1770433011211,5.05396502,87.22,87.187,3.94875402]
[1770433011903,5.05396502,87.22,87.188,10.3295]
[1770433012110,3.81715149,87.229,87.189,3.94875402]
[1770433013712,3.81715149,87.229,87.193,10.3288]
[1770433015214,5.05396502,87.24,87.207,10.3272]
[1770433016410,3.81715149,87.253,87.215,3.94875402]
[1770433016809,5.05396502,87.26,87.215,3.94875402]
[1770433017016,5.05396502,87.24,87.215,3.94875402]
[1770433017218,5.05396502,87.24,87.181,3.94875402]
[1770433017713,3.81715149,87.249,87.214,3.94875402]
[1770433018215,5.05396502,87.25,87.214,3.94875402]
[1770433018607,3.81715149,87.26,87.22,3.94875402]
[1770433019612,3.81715149,87.269,87.22,3.94875402]
[1770433019813,3.81715149,87.269,87.225,14.27385402]
[1770433020111,3.81715149,87.269,87.226,3.94875402]
[1770433020412,3.81715149,87.259,87.214,3.94875402]
[1770433020602,3.81715149,87.259,87.2,5.05396502]
[1770433020603,3.81715149,87.229,87.191,3.94875402]
[1770433020809,3.81715149,87.209,87.151,3.94875402]
[1770433021208,3.81715149,87.209,87.167,3.94875402]
[1770433021913,5.05396502,87.2,87.167,3.94875402]
[1770433022314,5.05396502,87.19,87.167,3.94875402]
[1770433022512,5.05396502,87.2,87.167,3.94875402]
[1770433023921,5.05396502,87.2,87.157,14.28185402]
[1770433025218,5.05396502,87.2,87.162,3.94875402]
[1770433025418,5.05396502,87.21,87.162,3.94875402]
[1770433026517,3.69761103,87.189,87.147,3.72602709]
[1770433026720,5.05396502,87.17,87.121,3.72602709]
[1770433026915,5.05396502,87.16,87.121,3.72602709]
[1770433027116,5.05396502,87.16,87.132,10.3361]
[1770433027916,5.05396502,87.17,87.132,10.3361]
[1770433028123,5.05396502,87.2,87.143,3.72602709]
[1770433029924,3.72163252,87.205,87.164,4.02691374]
[1770433030726,3.72163252,87.218,87.164,4.02691374]
[1770433031929,3.72163252,87.218,87.174,10.3311]
[1770433032229,3.72163252,87.232,87.164,4.02691374]
[1770433032425,3.72163252,87.232,87.184,10.3299]
[1770433033130,3.72163252,87.232,87.184,14.35681374]
[1770433035828,3.72163252,87.232,87.188,10.3294]
[1770433036028,3.72163252,87.247,87.189,4.02691374]
[1770433038029,3.72163252,87.239,87.173,4.02691374]
[1770433038929,3.72163252,87.239,87.184,4.02691374]
[1770433039317,3.72163252,87.259,87.184,4.02691374]
[1770433039726,3.72163252,87.259,87.211,10.3267]
[1770433040027,3.72163252,87.259,87.212,4.02691374]
[1770433040329,3.72163252,87.259,87.214,4.02691374]
[1770433041930,3.72163252,87.259,87.215,10.3262]
[1770433042129,3.72163252,87.259,87.2,4.02691374]